[Event "89_| Campeonato Brasileiro 2023"]
[Site "Recife"]
[Date "2023.12.18"]
[Round "8.2"]
[White "Do Valle Cardoso, Lucas"]
[Black "Fier, Alexandr"]
[Result "1/2-1/2"]
[ECO "D02"]
[WhiteElo "2352"]
[BlackElo "2545"]
[PlyCount "50"]
[EventDate "2023.??.??"]
[EventCountry "BRA"]
[TimeControl "90+30"]
[WhiteClock "0:26:56"]
[BlackClock "0:21:45"]

{[%evp 9,50,23,23,10,28,28,43,40,43,38,58,56,51,30,32,2,11,12,10,9,64,56,63,33,
50,42,38,37,57,45,91,64,59,-43,-24,-48,55,60,63,-36,65,54,55]} 1. Nf3 {[%emt 0:
00:00]} d5 {[%emt 0:00:00]} 2. g3 {[%emt 0:00:00]} g6 {[%emt 0:00:00]} 3. d4 {
[%emt 0:00:00]} c6 {[%emt 0:00:00]} 4. Bg2 {[%emt 0:00:00]} Bg7 {[%emt 0:00:00]
} 5. O-O {[%emt 0:00:00]} Nf6 {[%emt 0:00:00]} 6. a4 {[%emt 0:00:00][%cal
Ba2a4,Ba4a5][%mdl 32] D02:1 d4 d5 2 Nf3 sidelines, including 2...Nf6 3 g3 and
2...Nf6 3 Bf4.} O-O {[%emt 0:00:00]} 7. a5 {[%emt 0:00:00]} Na6 {[%emt 0:00:00]
[%cal Bb8a6,Ba6c7,Bc7b5,Bb5d6,Bd6c4][%mdl 32]} 8. c3 {[%emt 0:00:00]} Bf5 {
[%emt 0:00:00]} 9. Bf4 {[%emt 0:00:00]} Rc8 $146 {[%emt 0:00:00]} ({
Predecessor:} 9... Qc8 10. Qb3 Nh5 11. Be3 Rb8 12. c4 dxc4 13. Qxc4 Bh3 14. Nc3
Nc7 15. Bg5 Bxg2 16. Kxg2 {1-0 (24) Neiksans,A (2590)-Di Nicolantonio,L (2382)
Chartres 2022}) 10. Nbd2 {[%emt 0:00:00]} Nc7 {[%emt 0:00:00]} 11. Be5 {
[%emt 0:00:00]} Nb5 {[%emt 0:00:00]} 12. Ne1 {[%emt 0:00:00]} h5 {[%emt 0:00:
00]} 13. Nd3 {[%emt 0:00:00]} Nd6 {[%emt 0:00:00]} 14. Re1 {[%emt 0:00:00]} h4
{[%emt 0:00:00]} 15. gxh4 {[%emt 0:00:00]} e6 {[%emt 0:00:00]} 16. Nf3 {
[%emt 0:00:00]} Nc4 {[%emt 0:00:00]} 17. Bg3 {[%emt 0:00:00]} Ne4 {[%emt 0:00:
00]} 18. a6 {[%emt 0:00:00]} b6 {[%emt 0:00:00]} 19. Nfe5 {[%emt 0:00:00]} Ncd6
{[%emt 0:00:00]} 20. e3 {[%emt 0:00:00]} f6 {[%emt 0:00:00]} 21. Nf3 {[%eval
-43,24] [%emt 0:00:00]} (21. Ng4 $1 $14 {[%eval 59,25]}) 21... Qe7 {[%emt 0:00:
00][%mdl 1024] Black has compensation.} 22. Qe2 {[%emt 0:00:00]} Bg4 {[%eval
55,24] [%emt 0:00:00]} (22... Nc4 $15 {[%eval -48,26]}) 23. Qc2 $14 {[%emt 0:
00:00]} Bf5 {[%emt 0:00:00]} 24. Qe2 {[%eval -36,24] [%emt 0:00:00]} (24. Nd2
$1 $14 {[%eval 63,28]}) 24... Bg4 {[%eval 65,19] [%emt 0:00:00]} (24... Nc4 $15
{[%eval -36,24]}) 25. Qc2 {[%emt 0:00:00]} Bf5 {[%emt 0:00:00] Accuracy: White
= 58%, Black = 46%.} 1/2-1/2

[Event "89_| Campeonato Brasileiro 2023"]
[Site "Recife"]
[Date "2023.12.18"]
[Round "8.4"]
[White "Rocha, Vitor Firmo de Souz"]
[Black "Santiago, Yago De Moura"]
[Result "1/2-1/2"]
[ECO "B12"]
[WhiteElo "2207"]
[BlackElo "2476"]
[Annotator "Stockfish 16 (CB)"]
[PlyCount "177"]
[EventDate "2023.??.??"]
[EventCountry "BRA"]
[TimeControl "90+30"]
[WhiteClock "0:19:51"]
[BlackClock "0:17:43"]

{[%evp 15,176,29,46,-36,-35,-36,34,30,39,33,58,14,11,4,7,0,22,20,94,102,103,99,
96,100,99,54,182,148,151,140,224,222,202,50,364,103,103,103,105,102,97,21,100,
0,1,0,5,4,4,5,447,440,431,421,399,359,435,366,447,439,441,441,447,432,400,14,
460,430,517,509,512,500,485,352,352,352,352,352,533,531,525,521,533,533,530,
530,523,523,509,480,471,320,311,321,314,298,232,182,347,332,323,212,194,155,
489,129,128,0,0,0,0,0,0,0,0,0,0,0,0,0,0,0,0,0,0,0,0,0,0,0,0,0,0,0,0,0,0,0,0,0,
0,0,0,0,0,0,0,0,0,0,0,0,0,0,0,0,0,0,0,0,0,0,0]} 1. e4 {[%emt 0:00:00]} c6 {
[%emt 0:00:00]} 2. d4 {[%emt 0:00:00]} d5 {[%emt 0:00:00]} 3. e5 {[%emt 0:00:
00]} Bf5 {[%emt 0:00:00]} 4. Nf3 {[%emt 0:00:00]} e6 {[%emt 0:00:00]} 5. Be2 {
[%emt 0:00:00]} c5 {[%emt 0:00:00]} 6. Be3 {[%emt 0:00:00]} cxd4 {[%emt 0:00:
00]} 7. Nxd4 {[%emt 0:00:00]} Ne7 {[%emt 0:00:00]} 8. c4 {[%emt 0:00:00]} Nbc6
{[%emt 0:00:00]} 9. Nc3 {[%eval -36,31] [%emt 0:00:00] B12: Caro-Kann: Advance
Variation.} (9. Qa4 $1 $14 {[%eval 46,32]}) 9... Nxd4 $15 {[%emt 0:00:00]} 10.
Bxd4 {[%emt 0:00:00]} Nc6 {[%eval 34,30] [%emt 0:00:00]} (10... dxc4 $15 {
[%eval -36,33]} 11. Bxc4 a6) 11. cxd5 $14 {[%emt 0:00:00] White is slightly
better.} exd5 {[%emt 0:00:00]} 12. O-O {[%emt 0:00:00]} Be7 {[%emt 0:00:00]}
13. Rc1 $146 {[%eval 14,31] [%emt 0:00:00]} (13. Bf3 $14 {[%eval 58,29]}) ({
Predecessor:} 13. Bf3 Be6 14. Be3 Nxe5 15. Bxd5 Bxd5 16. Qxd5 Qxd5 17. Nxd5 Bd6
18. Rfd1 O-O 19. Nf6+ gxf6 20. Rxd6 {1-0 (60) Grekh,A (2382)-Ilandzis,S (2162)
Pardubice 2013}) 13... O-O $11 {[%emt 0:00:00]} 14. a3 {[%emt 0:00:00]} Rc8 {
[%emt 0:00:00]} 15. Kh1 {[%emt 0:00:00]} h6 {[%emt 0:00:00]} 16. f4 {[%emt 0:
00:00]} Qa5 {[%eval 94,29] [%emt 0:00:00]} (16... Kh8 $11 {[%eval 20,33]
remains equal.}) 17. b4 $1 $16 {[%emt 0:00:00][%cal Rb4a5]} Qd8 {[%emt 0:00:00]
} 18. Bf3 {[%emt 0:00:00]} Be6 {[%emt 0:00:00]} 19. Bg1 {[%emt 0:00:00][%cal
Rc3d5]} d4 {[%emt 0:00:00]} 20. Nb5 {[%eval 54,32] [%emt 0:00:00]} (20. Ne4 $1
$16 {[%eval 99,23]}) 20... d3 {[%eval 182,31] [%emt 0:00:00] [#]} (20... a5 $14
{[%eval 54,32]}) 21. Nd6 $1 {[%emt 0:00:00][%mdl 512]} Bxd6 {[%emt 0:00:00]}
22. exd6 {[%emt 0:00:00]} Bf5 {[%eval 224,26] [%emt 0:00:00]} (22... Qxd6 $16 {
[%eval 140,31]} 23. Bc5 Qd7) 23. g4 $18 {[%emt 0:00:00]} Bh7 {[%emt 0:00:00]}
24. f5 $2 {[%eval 50,30] [%emt 0:00:00]} ({White should try} 24. b5 $18 {
[%eval 202,24]} Nb8 25. Rxc8 (25. Bxb7 Rxc1 26. Qxc1 Qxd6 $14) (25. Bxa7 Qxd6
26. Rxc8 Rxc8 $14) 25... Qxc8 26. f5 (26. Bxa7 Qd7 $16)) 24... h5 $2 {[%eval
364,30] [%emt 0:00:00][%mdl 8192]} (24... Ne5 $1 $14 {[%eval 50,30]}) 25. Rxc6
$2 {[%eval 103,29] [%emt 0:00:00]} ({Don't play} 25. Qxd3 Ne5 $18) (25. Bxc6
$18 {[%eval 364,30]} Rxc6 26. Rxc6 (26. Qxd3 Rxd6 27. Qe4 hxg4 $11) 26... bxc6
27. Qxd3) 25... bxc6 $16 {[%emt 0:00:00]} 26. Qxd3 {[%emt 0:00:00] And now d7
would win.} hxg4 {[%emt 0:00:00]} 27. Bxg4 {[%emt 0:00:00] Threatens to win
with d7.} Qd7 {[%emt 0:00:00]} 28. h3 {[%eval 21,31] [%emt 0:00:00]} (28. Bc5
$16 {[%eval 97,33]}) 28... Rfe8 {[%eval 100,26] [%emt 0:00:00] [#]} (28... Rcd8
$11 {[%eval 21,31]}) 29. Qg3 {[%eval 0,40] [%emt 0:00:00]} (29. Bxa7 $1 $16 {
[%eval 100,26][%mdl 512]} Re5 (29... Qxa7 30. d7) 30. Bc5) 29... f6 {[%emt 0:
00:00]} 30. Bc5 $36 {[%emt 0:00:00][%mdl 2048] White has good play.} Re5 {
[%emt 0:00:00]} 31. Qxe5 {[%emt 0:00:00]} fxe5 {[%emt 0:00:00]} 32. f6 {
[%emt 0:00:00]} Rd8 $2 {[%eval 447,31] [%emt 0:01:21][%mdl 8192]} ({Don't go
for} 32... Be4+ $2 33. Kh2 $18) (32... Qf7 $11 {[%eval 5,47] and Black stays
safe.} 33. Bxc8 gxf6) 33. Bxd7 $18 {[%emt 0:00:00]} Rxd7 {[%emt 0:00:01]} 34.
fxg7 {[%emt 0:00:00]} Kxg7 {[%emt 0:00:20][%mdl 4096] Endgame KRB-KRB} 35. Kh2
{[%emt 0:00:00]} Bd3 {[%emt 0:03:28]} 36. Rf2 {[%emt 0:00:00]} a6 {[%emt 0:00:
19]} 37. Kg3 {[%emt 0:00:00]} Kg6 {[%emt 0:02:03]} 38. Rf8 {[%emt 0:00:00]} Be4
{[%emt 0:00:49]} 39. Re8 {[%emt 0:00:00]} Kf6 {[%emt 0:00:58]} 40. Re7 $2 {
[%eval 14,39] [%emt 0:00:00]} (40. h4 $18 {[%eval 400,27] aiming for Rc8.} Bf5
41. h5) 40... Rd8 $2 {[%eval 460,25] [%emt 0:00:23][%mdl 8192]} (40... Rxe7 $11
{[%eval 14,39] and Black is okay.} 41. dxe7 Bg6) 41. Ra7 {[%emt 0:00:09]} Rg8+
{[%emt 0:03:32]} 42. Kf2 {[%emt 0:00:07]} Bf5 {[%emt 0:00:33]} 43. Rxa6 {
[%emt 0:00:34]} Bxh3 {[%emt 0:00:16]} 44. Rxc6 {[%emt 0:00:21]} Bd7 {[%emt 0:
00:21]} 45. Rc7 {[%emt 0:00:33]} Ke6 {[%emt 0:00:06]} 46. Ra7 {[%emt 0:00:31]}
Rh8 {[%eval 533,31] [%emt 0:01:57]} (46... Rf8+ $142 {[%eval 352,30]} 47. Ke3
Rh8) 47. a4 {[%emt 0:00:11]} Rh2+ {[%emt 0:00:08]} 48. Kg3 {[%emt 0:00:22]} Ra2
{[%emt 0:00:34]} 49. a5 {[%emt 0:01:11]} Ra3+ {[%emt 0:00:15]} 50. Kf2 {
[%emt 0:00:14]} Ra2+ {[%emt 0:00:07]} 51. Ke3 {[%emt 0:00:44]} Ra3+ {[%emt 0:
01:43]} 52. Kd2 {[%emt 0:00:37]} e4 {[%emt 0:00:07]} 53. Rc7 {[%emt 0:02:07]}
e3+ {[%emt 0:00:20]} 54. Bxe3 {[%emt 0:00:30]} Kxd6 {[%emt 0:00:09]} 55. Bf4+ {
[%emt 0:00:12]} Ke6 {[%emt 0:00:02]} 56. Kc1 {[%emt 0:03:53]} Ra4 $2 {[%eval
347,30] [%emt 0:02:21]} (56... Bb5 {[%eval 182,36]} 57. Rc5 Bf1) 57. Bd2 {
[%emt 0:00:18]} Ra2 {[%emt 0:00:15]} 58. Bc3 {[%emt 0:00:33]} Bb5 {[%emt 0:00:
35]} 59. Kb1 {[%emt 0:02:50]} Rg2 $2 {[%eval 489,27] [%emt 0:00:39] [#]} (59...
Rf2 $16 {[%eval 155,30] is more resistant.} 60. Kc1 Bd3) 60. Rc5 $2 {[%eval
129,31] [%emt 0:00:48]} (60. a6 $1 $18 {[%eval 489,27] is the precise move to
win.}) 60... Bd3+ $16 {[%emt 0:00:52] [#]} 61. Ka1 {[%eval 0,39] [%emt 0:00:44]
} (61. Kc1 $1 $16 {[%eval 128,29]}) 61... Rc2 $11 {[%emt 0:00:25] The position
is equal.} 62. a6 {[%emt 0:04:54][%mdl 64] Decoy} Bxa6 {[%emt 0:00:18]} 63.
Rc6+ {[%emt 0:00:05]} Kd7 {[%emt 0:00:18]} 64. Rxa6 {[%emt 0:00:09]} Rxc3 {
[%emt 0:00:04] KR-KR} 65. Kb2 {[%emt 0:00:17]} Rh3 {[%emt 0:00:08]} 66. Rb6 {
[%emt 0:00:50]} Kc7 {[%emt 0:00:09]} 67. Rg6 {[%emt 0:00:14]} Kb7 {[%emt 0:00:
05]} 68. Kc2 {[%emt 0:00:07]} Kc7 {[%emt 0:00:05]} 69. Rg5 {[%emt 0:00:17]} Kb6
{[%emt 0:00:07]} 70. Rc5 {[%emt 0:00:07]} Rg3 {[%emt 0:00:05]} 71. Rc3 {
[%emt 0:00:06]} Rxc3+ {[%emt 0:00:09]} (71... Rg8 {looks sharper.} 72. Kd3 Re8
73. b5 Kb7 74. b6 Re7) 72. Kxc3 {[%emt 0:00:03] KP-K} Kb5 {[%emt 0:00:08]} 73.
Kb3 {[%emt 0:00:03]} Kb6 {[%emt 0:00:04]} 74. Kc4 {[%emt 0:00:04]} Kc6 {
[%emt 0:00:03]} 75. b5+ {[%emt 0:00:02]} Kb6 {[%emt 0:00:04]} 76. Kb4 {[%emt 0:
00:03]} Kb7 {[%emt 0:00:04]} 77. Kc5 {[%emt 0:00:04]} Kc7 {[%emt 0:00:03]} 78.
b6+ {[%emt 0:00:02]} Kb7 {[%emt 0:00:03]} 79. Kb5 {[%emt 0:00:03]} Kb8 {
[%emt 0:00:03]} 80. Kc6 {[%emt 0:00:04] White threatens b7 and mate.} Kc8 {
[%emt 0:00:02]} 81. Kb5 {[%emt 0:00:03]} Kb7 {[%emt 0:00:12]} 82. Kc5 {[%emt 0:
00:05]} Kb8 {[%emt 0:00:03]} 83. Kb4 {[%emt 0:00:14]} (83. Kd6 {keeps more
tension.} Kb7 84. Kc5 Kb8 85. Kd4 Kb7 86. Kc5) 83... Kb7 {[%emt 0:00:07]} 84.
Kb5 {[%emt 0:00:02]} Kb8 {[%emt 0:00:06]} 85. Kc5 {[%emt 0:00:03]} Kb7 {
[%emt 0:00:04]} 86. Kb5 {[%emt 0:00:02]} Kb8 {[%emt 0:00:06]} 87. Kc6 {[%emt 0:
00:04] Threatening mate with b7.} Kc8 {[%emt 0:00:04]} 88. b7+ {[%emt 0:00:02]}
Kb8 {[%emt 0:00:04]} 89. Kb6 {[%emt 0:00:31] Accuracy: White = 70%, Black =
65%.} 1/2-1/2

[Event "89_| Campeonato Brasileiro 2023"]
[Site "Recife"]
[Date "2023.12.18"]
[Round "8.6"]
[White "Filgueiras, Nathan Felipe"]
[Black "Lima, Stefan Moisei VIeir"]
[Result "1/2-1/2"]
[ECO "C55"]
[WhiteElo "2295"]
[BlackElo "2155"]
[PlyCount "109"]
[EventDate "2023.??.??"]
[EventCountry "BRA"]
[TimeControl "90+30"]
[WhiteClock "0:01:20"]
[BlackClock "0:02:04"]

{[%evp 10,109,25,14,37,25,25,10,21,18,27,4,56,47,77,53,52,53,69,12,7,-54,-45,
-47,-42,-64,-51,-66,-70,-65,-32,-58,-43,-43,-29,-192,-196,-218,-232,-382,-362,
-365,-370,-356,-347,-328,-300,-629,-625,-593,-158,-529,-305,-301,-302,-239,
-132,-340,-134,-186,-190,-165,-55,-69,-34,-52,-64,-75,-56,-255,-250,-247,-189,
-157,-191,-159,0,0,0,0,0,0,0,0,0,0,0,0,0,0,0,0,0,0,0,0,0,0,0,0,0,0]} 1. e4 {
[%emt 0:00:00]} e5 {[%emt 0:00:00]} 2. Nf3 {[%emt 0:00:00]} Nc6 {[%emt 0:00:00]
} 3. Bc4 {[%emt 0:00:00]} Nf6 {[%emt 0:00:00]} 4. d3 {[%emt 0:00:00]} h6 {
[%emt 0:00:00]} 5. c3 {[%emt 0:00:00]} d6 {[%emt 0:00:00]} 6. Bb3 {[%emt 0:00:
00]} a5 {[%emt 0:00:00] C55: Two Knights: 4 d3, 4 d4 exd4 5 e5 and Max Lange
Attack.} 7. Nbd2 {[%emt 0:00:00]} g6 {[%emt 0:00:00]} 8. O-O {[%emt 0:00:00]}
Bg7 {[%emt 0:00:00]} 9. Re1 {[%emt 0:00:00]} O-O {[%emt 0:00:00]} 10. d4 $146 {
[%emt 0:00:00]} ({Predecessor:} 10. Nf1 d5 11. exd5 Nxd5 12. Ng3 f5 13. h3 Kh7
14. Ba4 Nde7 15. Qe2 Bd7 16. Bc2 {0-1 (60) Onischuk,V (2603)-Fedoseev,V (2716)
Riga 2021}) 10... Kh8 {[%emt 0:00:00]} 11. h3 {[%emt 0:00:00]} Bd7 {[%emt 0:00:
00]} 12. Nf1 {[%emt 0:00:00]} a4 {[%emt 0:00:00]} 13. Bc2 {[%emt 0:00:00]} Nh5
{[%emt 0:00:00]} 14. g4 {[%eval 12,26] [%emt 0:00:00]} ({White should try} 14.
Be3 $14 {[%eval 69,23]}) 14... Nf6 $11 {[%emt 0:00:00]} 15. dxe5 {[%eval -54,
23] [%emt 0:00:00]} (15. d5 $11 {[%eval 7,26]} Ne7 16. Ng3) 15... Nxe5 $15 {
[%emt 0:00:00]} 16. Nxe5 {[%emt 0:00:00]} dxe5 {[%emt 0:00:00]} 17. Be3 {
[%emt 0:00:00]} Qe7 {[%emt 0:00:00]} 18. Qf3 {[%emt 0:00:00]} Nh7 {[%emt 0:00:
00]} 19. Qg3 {[%emt 0:00:00]} Ng5 {[%emt 0:00:00]} 20. Nd2 {[%emt 0:00:00]} Bc6
{[%emt 0:00:00]} 21. h4 {[%emt 0:00:00]} Ne6 {[%emt 0:00:00]} 22. g5 $2 {
[%eval -192,25] [%emt 0:01:32]} (22. Nf3 $11 {[%eval -29,25] and White stays
safe.}) 22... f5 $1 $19 {[%emt 0:00:00][%cal Rf5f4]} 23. exf5 {[%emt 0:03:04]}
(23. gxh6 Bf6 $17) 23... gxf5 {[%emt 0:00:00]} 24. f4 {[%eval -382,23] [%emt 0:
03:30]} (24. Qh3 $142 {[%eval -232,27]} e4 25. Rad1 (25. gxh6 $2 Bf6 $19))
24... exf4 {[%emt 0:00:00][%mdl 64] Overworked Piece} 25. Bxf4 {[%emt 0:00:15]}
Qc5+ {[%emt 0:01:23]} 26. Be3 {[%emt 0:03:20]} Qd5 {[%emt 0:01:03] ...f4 is
the strong threat.} 27. Qh3 {[%emt 0:00:48]} Rae8 {[%emt 0:05:46]} 28. Nf1 $2 {
[%eval -629,25] [%emt 0:00:24]} (28. Rad1 {[%eval -300,23]}) 28... f4 {[%emt 0:
02:09]} 29. Bf2 {[%emt 0:01:17] [#]} f3 $2 {[%eval -158,27] [%emt 0:00:49]} (
29... Nxg5 $1 $19 {[%eval -593,28][%mdl 512]} 30. hxg5 Qxg5+ 31. Kh2 Re3 $1 {
[%mdl 512]} 32. Nxe3 fxe3) 30. Be4 $2 {[%eval -529,24] [%emt 0:00:33]} (30. Qg4
$17 {[%eval -158,27] nothing else works.} Nf4 31. Rxe8 Bxe8 32. Rd1) 30... Qb5
{[%emt 0:03:45]} 31. Bxc6 {[%emt 0:01:19]} Qxc6 {[%emt 0:00:09]} 32. Qg4 {
[%emt 0:00:35] [#]} Nf4 {[%eval -132,26] [%emt 0:00:43]} (32... a3 $1 $19 {
[%eval -239,24][%mdl 512] Hoping for ...Nf4.} 33. bxa3 Nf4 34. Rxe8 Qxe8) 33.
Ng3 $2 {[%eval -340,26] [%emt 0:00:43] [#]} (33. gxh6 $17 {[%eval -132,26] was
worth a try.} Bxh6 34. Rxe8 Qxe8 35. Kh1) 33... Nd3 $2 {[%eval -134,32] [%emt
0:01:26]} (33... Re2 $1 $19 {[%eval -340,26][%mdl 512] is more deadly.
Threatens to win with ...Rxf2!} 34. Nxe2 (34. Rxe2 fxe2) 34... fxe2) 34. Rxe8 {
[%emt 0:00:30]} Qxe8 {[%emt 0:00:19]} 35. Qe4 {[%emt 0:00:37]} Qxe4 {[%eval
-55,33] [%emt 0:00:54]} ({Weaker is} 35... Nxb2 36. gxh6 Bf6 37. Rf1 $11 (37.
Qxf3 Be5 $11) (37. Qxb7 Nd3 $11)) (35... Qd7 $19 {[%eval -165,24] ( -> ...Qh3)}
36. gxh6 Be5) 36. Nxe4 $15 {[%emt 0:00:01]} Rf4 {[%emt 0:00:11]} 37. Rd1 {
[%emt 0:00:57]} Nxb2 {[%emt 0:00:23]} 38. Rd8+ $1 {[%emt 0:00:10]} Kh7 {
[%emt 0:00:27]} 39. Nf6+ $2 {[%eval -255,27] [%emt 0:00:41]} (39. gxh6 $15 {
[%eval -56,27]} Rg4+ 40. Kf1 Kxh6 41. Ng5) 39... Bxf6 $19 {[%emt 0:00:41]} 40.
gxf6 {[%emt 0:00:05]} Rxf6 {[%emt 0:00:34][%mdl 4096] Endgame KRB-KRN} 41. Rd7+
{[%emt 0:00:21]} Kg6 {[%emt 0:00:17]} 42. Rxc7 {[%emt 0:00:16] [#]} Rf7 $2 {
[%eval 0,50] [%emt 0:00:12] [#]} (42... b5 $1 $17 {[%eval -159,27] White must
now prevent ...Rd6.} 43. Rc5 Rf5 44. Rc6+ Kh5) 43. h5+ $1 $11 {[%emt 0:01:19]
[%mdl 512] The position is equal.} Kf6 {[%emt 0:00:47]} (43... Kxh5 44. Rxf7)
44. Bd4+ {[%emt 0:00:05]} Ke6 {[%emt 0:00:05]} 45. Rxf7 {[%emt 0:00:06]} Kxf7 {
[%emt 0:00:04] KB-KN} 46. Kf2 {[%emt 0:00:10]} Nc4 {[%emt 0:01:01]} 47. Kxf3 {
[%emt 0:00:16]} Nd6 {[%emt 0:00:13]} 48. Be3 {[%emt 0:00:59]} Nf5 {[%emt 0:00:
27]} 49. Bd2 {[%emt 0:00:05]} b5 {[%emt 0:00:27]} 50. Ke4 {[%emt 0:01:44]} Ke6
$1 {[%emt 0:00:15]} 51. Bf4 {[%emt 0:00:16]} Ng7 {[%emt 0:00:31]} 52. Kd4 {
[%emt 0:00:55] aiming for Kc5.} Nxh5 {[%emt 0:00:09]} 53. Bxh6 {[%emt 0:00:16]}
Kd6 {[%emt 0:00:39]} 54. c4 {[%emt 0:00:20]} Kc6 {[%emt 0:00:37]} 55. cxb5+ {
[%emt 0:00:11] Accuracy: White = 52%, Black = 60%.} 1/2-1/2

[Event "89_| Campeonato Brasileiro 2023"]
[Site "Recife"]
[Date "2023.12.18"]
[Round "8.7"]
[White "Labussiere, Yago"]
[Black "Pinheiro, Iung Alicio"]
[Result "0-1"]
[ECO "A37"]
[WhiteElo "2182"]
[BlackElo "2274"]
[PlyCount "118"]
[EventDate "2023.??.??"]
[EventCountry "BRA"]
[TimeControl "90+30"]
[WhiteClock "0:14:50"]
[BlackClock "0:10:47"]

{[%evp 11,118,16,30,0,15,10,14,8,10,16,3,0,0,0,6,-22,26,0,0,0,4,0,10,-12,0,0,6,
0,3,0,39,-28,-25,-50,-10,-33,0,-42,0,-4,-4,-30,0,0,22,0,3,0,0,-2,18,-196,-202,
-164,-133,-215,-75,-63,-55,-63,-62,-122,-127,-157,-151,-140,-47,-63,-66,-350,
-350,-350,-350,-305,-249,-371,-358,-355,-348,-391,-350,-350,-350,-350,-186,
-206,-206,-350,-350,-350,-350,-651,-617,-659,-646,-720,-722,-3401,-3157,-3423,
-3347,-3584,-3579,-3584,-3579,-3576,-3412,-3549,-3548]} 1. c4 {[%emt 0:00:00]}
c5 {[%emt 0:00:00]} 2. Nc3 {[%emt 0:00:00]} g6 {[%emt 0:00:00]} 3. g3 {[%emt 0:
00:00]} Bg7 {[%emt 0:00:00]} 4. Bg2 {[%emt 0:00:00]} Nc6 {[%emt 0:00:00]} 5.
Nf3 {[%emt 0:00:00]} d6 {[%emt 0:00:00]} 6. O-O {[%emt 0:00:00]} Bf5 {[%emt 0:
00:00]} 7. d3 {[%emt 0:00:00] A37: Symmetrical English vs ...g6:4 Bg2 Bg7 5
Nf3.} Qc8 {[%emt 0:00:00]} 8. Rb1 {[%emt 0:00:00]} Bh3 {[%emt 0:00:00]} 9. a3 {
[%emt 0:00:00] The position is equal.} h5 {[%emt 0:00:00]} 10. Bxh3 {[%emt 0:
00:00]} Qxh3 {[%emt 0:00:00]} 11. Ng5 {[%emt 0:00:00]} Qd7 {[%emt 0:00:00]} 12.
h4 {[%emt 0:00:00]} Nh6 {[%emt 0:00:00]} 13. Kg2 $146 {[%emt 0:00:00]} ({
Predecessor:} 13. Nd5 e6 14. Nf4 O-O-O 15. b4 b6 16. Qa4 Nd4 17. Qxd7+ Rxd7 18.
e3 Nc6 19. Bd2 {1-0 (90) Pham,K (2376)-Bodnar,N (2441) Chess.com INT 2022})
13... Nf5 {[%emt 0:00:00]} 14. Bd2 {[%emt 0:00:00]} (14. e4 $5 {[%cal Re4f5]}
Nfd4 15. Be3 $11) 14... O-O {[%emt 0:00:00]} 15. b4 {[%emt 0:00:00]} b6 {
[%emt 0:00:00]} 16. Nf3 {[%emt 0:00:00]} Ncd4 {[%emt 0:00:00]} 17. Nxd4 {
[%emt 0:00:00]} (17. Ng5 {is interesting.} e6 18. e4 Ne7 19. Ne2 Nxe2 20. Qxe2
Nc6 21. Nf3) 17... cxd4 {[%emt 0:00:00]} 18. Ne4 {[%emt 0:00:00]} Rac8 {
[%emt 0:00:00]} 19. Qb3 {[%emt 0:00:00]} Be5 {[%emt 0:00:00]} 20. b5 {[%emt 0:
00:00]} e6 {[%emt 0:00:43]} 21. Ng5 {[%eval -28,27] [%emt 0:00:00]} ({Better is
} 21. Bf4 $14 {[%eval 39,24]} Bg7 22. a4) 21... Qb7+ {[%emt 0:00:30]} 22. Nf3 {
[%emt 0:00:00]} Bg7 {[%emt 0:00:30]} (22... Bf6 {seems wilder.} 23. Kh2 e5 24.
Bg5 Bg7 25. Bd2 Rce8) 23. Kg1 {[%emt 0:00:00]} Rfe8 {[%emt 0:00:30]} 24. Rfe1 {
[%emt 0:00:00]} Bf6 {[%emt 0:00:30]} 25. Bg5 {[%emt 0:00:00]} Bg7 {[%emt 0:00:
30]} 26. Bd2 {[%emt 0:00:00]} Rc7 {[%emt 0:00:30]} 27. a4 {[%emt 0:00:10]} Rec8
{[%emt 0:00:30]} 28. Rbc1 {[%emt 0:00:30]} Bf6 {[%emt 0:00:30]} 29. Rc2 {
[%emt 0:00:30]} e5 {[%emt 0:00:30]} 30. Rec1 {[%emt 0:00:30]} Re8 {[%emt 0:00:
30]} 31. Kf1 $2 {[%eval -196,23] [%emt 0:00:30]} (31. Bg5 $1 $11 {[%eval 18,28]
and White stays safe.} Bg7 32. a5) 31... e4 $19 {[%emt 0:00:30]} 32. dxe4 {
[%emt 0:00:30]} Qxe4 {[%emt 0:00:30]} 33. Bf4 {[%eval -215,25] [%emt 0:00:30] 
[#]} (33. Ng1 $17 {[%eval -133,26]}) 33... Bxh4 {[%eval -75,26] [%emt 0:00:30]}
(33... Nxh4 $1 $19 {[%eval -215,25][%mdl 512] is more deadly.} 34. Rd2 (34.
Nxh4 Qh1#) 34... Nxf3 35. Qxf3 Qe6) 34. Qd3 $17 {[%emt 0:00:30]} Bf6 {[%emt 0:
00:30]} 35. Qxe4 $1 {[%emt 0:00:30]} Rxe4 {[%emt 0:00:30]} 36. Ra2 {[%eval
-122,26] [%emt 0:00:30]} (36. a5 $1 $15 {[%eval -62,29]}) 36... h4 {[%emt 0:00:
30]} 37. a5 {[%emt 0:00:30]} hxg3 {[%emt 0:00:30]} 38. fxg3 {[%emt 0:00:30]}
Be5 {[%eval -47,30] [%emt 0:00:30]} (38... Kg7 $17 {[%eval -140,24] And now ...
Be5 would win.} 39. axb6 axb6) 39. axb6 {[%emt 0:00:30]} axb6 {[%emt 0:00:30]}
40. Ra8+ $2 {[%eval -350,31] [%emt 0:00:30][%mdl 8192]} (40. Bxe5 $1 $15 {
[%eval -66,27]} dxe5 41. Kf2) 40... Kg7 $19 {[%emt 0:00:30]} 41. Bxe5+ {
[%emt 0:00:30]} dxe5 {[%emt 0:00:30]} 42. Kf2 {[%emt 0:00:30]} Nd6 {[%emt 0:00:
30]} 43. Rb8 {[%eval -371,31] [%emt 0:00:30]} (43. c5 $142 {[%eval -249,28]}
bxc5 44. b6) 43... Rxc4 {[%emt 0:00:30]} 44. Rxc4 {[%emt 0:00:30]} Nxc4 {
[%emt 0:00:30][%mdl 4096] Endgame KRN-KRN} 45. Rb7 {[%emt 0:00:30]} Re3 {
[%emt 0:00:30]} 46. Ng5 {[%emt 0:00:30]} Nd6 {[%emt 0:00:30]} 47. Rxb6 {
[%emt 0:00:30] [#]} Ne4+ {[%eval -186,32] [%emt 0:00:30]} (47... Kh6 $142 $1 {
[%eval -350,36][%cal Rh6g5]} 48. Rxd6 Kxg5) 48. Nxe4 {[%emt 0:00:30]} Rxe4 {
[%emt 0:00:30] KR-KR} 49. Rc6 {[%eval -350,39] [%emt 0:00:30]} (49. Rb7 {
[%eval -206,31] is the only way for White.}) 49... Re3 {[%emt 0:00:30]} 50. b6
{[%emt 0:00:30]} Rb3 {[%emt 0:00:30]} 51. e3 $2 {[%eval -651,26] [%emt 0:00:30]
} (51. Kg2 {[%eval -350,36]} Kh6 52. Rc5) 51... dxe3+ {[%emt 0:00:30] Black is
clearly winning.} 52. Ke2 {[%emt 0:00:30]} f5 {[%emt 0:00:30]} 53. Re6 {
[%emt 0:00:30]} e4 {[%emt 0:00:30]} 54. g4 {[%emt 0:00:30]} Kf7 {[%emt 0:00:30]
} 55. Re5 {[%emt 0:00:30]} Kf6 {[%emt 0:00:30]} 56. Re8 {[%emt 0:00:30]} Rxb6 {
[%emt 0:00:30]} 57. Kxe3 {[%emt 0:00:30]} Rb3+ {[%emt 0:00:30]} 58. Ke2 {
[%emt 0:00:30]} Kg5 {[%emt 0:00:30]} 59. gxf5 {[%emt 0:00:30]} gxf5 {[%emt 0:
00:30] Accuracy: White = 45%, Black = 65%.} 0-1